[Event "Early-Titled-Tuesday-Blitz-March-26-2024"]
[Site "Chess.com"]
[Date "2024.03.26"]
[Round "4"]
[White "Matrix3x3a"]
[Black "dretch"]
[Result "0-1"]
[WhiteElo "2606"]
[BlackElo "2875"]
[TimeControl "180+1"]
[EndTime "8:38:49 PDT"]
[Termination "dretch won by resignation"]

1. d4 {[%clk 0:03:00.9]} 1... d5 {[%clk 0:02:57.3]} 2. c4 {[%clk 0:03:00.2]}
2... c6 {[%clk 0:02:57.3]} 3. Nc3 {[%clk 0:03:00]} 3... dxc4 {[%clk 0:02:57.2]}
4. e3 {[%clk 0:02:58]} 4... b5 {[%clk 0:02:56.4]} 5. a4 {[%clk 0:02:58.5]} 5...
b4 {[%clk 0:02:56.6]} 6. Nb1 {[%clk 0:02:57.4]} 6... Ba6 {[%clk 0:02:54.4]} 7.
Nd2 {[%clk 0:02:55.1]} 7... c3 {[%clk 0:02:54.1]} 8. bxc3 {[%clk 0:02:54.4]}
8... bxc3 {[%clk 0:02:54.7]} 9. Ne4 {[%clk 0:02:37.7]} 9... Bxf1 {[%clk
0:02:47.4]} 10. Kxf1 {[%clk 0:02:38.6]} 10... Nf6 {[%clk 0:02:41.8]} 11. Nxc3
{[%clk 0:02:38.1]} 11... e6 {[%clk 0:02:40.8]} 12. Nge2 {[%clk 0:02:36.7]} 12...
Bb4 {[%clk 0:02:37.6]} 13. Ba3 {[%clk 0:02:36.5]} 13... a5 {[%clk 0:02:36.1]}
14. Qb3 {[%clk 0:02:34]} 14... Na6 {[%clk 0:02:24.2]} 15. Qc4 {[%clk 0:02:32.7]}
15... Qd6 {[%clk 0:02:20]} 16. Bxb4 {[%clk 0:02:23.4]} 16... axb4 {[%clk
0:02:17.8]} 17. Nb1 {[%clk 0:02:22.5]} 17... O-O {[%clk 0:02:14.3]} 18. Nd2
{[%clk 0:02:22.4]} 18... c5 {[%clk 0:02:09.7]} 19. g3 {[%clk 0:02:18]} 19... Qc6
{[%clk 0:02:06.1]} 20. f3 {[%clk 0:02:13.1]} 20... Rfc8 {[%clk 0:02:02.4]} 21.
Kg2 {[%clk 0:02:05]} 21... Nd5 {[%clk 0:01:59.9]} 22. Nf1 {[%clk 0:01:57.4]}
22... Nb6 {[%clk 0:01:49.2]} 23. Qb5 {[%clk 0:01:53.1]} 23... c4 {[%clk
0:01:49.4]} 24. Qxc6 {[%clk 0:01:45]} 24... Rxc6 {[%clk 0:01:50.3]} 25. a5
{[%clk 0:01:38.4]} 25... Nc8 {[%clk 0:01:48.4]} 26. Nd2 {[%clk 0:01:34.6]} 26...
Nd6 {[%clk 0:01:46.2]} 27. Rhc1 {[%clk 0:01:29.3]} 27... Kf8 {[%clk 0:01:42]}
28. g4 {[%clk 0:01:24.2]} 28... c3 {[%clk 0:01:38.2]} 29. Nb3 {[%clk 0:01:22.4]}
29... Nc4 {[%clk 0:01:38.3]} 30. Kf2 {[%clk 0:01:20.6]} 30... Nc7 {[%clk
0:01:33.2]} 31. Rc2 {[%clk 0:01:12.7]} 31... Nb5 {[%clk 0:01:27.8]} 32. Rca2
{[%clk 0:01:08.8]} 32... Ke7 {[%clk 0:01:02]} 33. Nf4 {[%clk 0:01:05.4]} 33...
Nba3 {[%clk 0:00:58.6]} 34. Nd3 {[%clk 0:01:00.5]} 34... Rb8 {[%clk 0:00:54.1]}
35. Ke2 {[%clk 0:00:59.8]} 35... Rb5 {[%clk 0:00:46.2]} 36. h4 {[%clk
0:00:46.4]} 36... h6 {[%clk 0:00:36.8]} 37. h5 {[%clk 0:00:39.5]} 37... f6
{[%clk 0:00:32.1]} 38. f4 {[%clk 0:00:37.7]} 38... Ra6 {[%clk 0:00:23.1]} 39.
Ndc5 {[%clk 0:00:33.1]} 39... Ra7 {[%clk 0:00:20.6]} 40. a6 {[%clk 0:00:33.2]}
40... e5 {[%clk 0:00:19.5]} 41. Kd3 {[%clk 0:00:30.2]} 41... exf4 {[%clk
0:00:14.4]} 42. exf4 {[%clk 0:00:31.1]} 42... Kf7 {[%clk 0:00:14.4]} 43. Re1
{[%clk 0:00:27.2]} 43... Nb2+ {[%clk 0:00:14.5]} 44. Ke2 {[%clk 0:00:25.3]}
44... Rb8 {[%clk 0:00:11]} 45. Kf3 {[%clk 0:00:20.2]} 45... Rd8 {[%clk 0:00:10]}
46. Re2 {[%clk 0:00:20.2]} 46... Nb5 {[%clk 0:00:09.8]} 47. Ke3 {[%clk
0:00:12.3]} 47... Re7+ {[%clk 0:00:08.2]} 48. Kf3 {[%clk 0:00:12]} 48... Ra7
{[%clk 0:00:07.6]} 49. Ke3 {[%clk 0:00:11.7]} 49... Nc4+ {[%clk 0:00:07.4]} 50.
Kf3 {[%clk 0:00:11.6]} 50... Nxd4+ {[%clk 0:00:06.8]} 51. Nxd4 {[%clk
0:00:10.6]} 51... Rxd4 {[%clk 0:00:07.7]} 52. Re4 {[%clk 0:00:07.1]} 52... Nd2+
{[%clk 0:00:07.5]} 53. Ke3 {[%clk 0:00:06.8]} 53... Nxe4 {[%clk 0:00:06]} 54.
Kxd4 {[%clk 0:00:06.8]} 54... Nxc5 {[%clk 0:00:06.4]} 55. Kxc5 {[%clk
0:00:07.3]} 55... b3 {[%clk 0:00:06.9]} 56. Ra3 {[%clk 0:00:07.1]} 56... b2
{[%clk 0:00:07.1]} 57. Rxc3 {[%clk 0:00:07.5]} 57... b1=Q {[%clk 0:00:07.2]} 0-1

[Event "Early-Titled-Tuesday-Blitz-March-26-2024"]
[Site "Chess.com"]
[Date "2024.03.26"]
[Round "4"]
[White "gummigisla"]
[Black "LeRoidesChampions"]
[Result "0-1"]
[WhiteElo "2434"]
[BlackElo "2687"]
[TimeControl "180+1"]
[EndTime "8:38:49 PDT"]
[Termination "LeRoidesChampions won by checkmate"]

1. d4 {[%clk 0:03:00.9]} 1... Nf6 {[%clk 0:03:00]} 2. Nf3 {[%clk 0:02:57.7]}
2... g6 {[%clk 0:02:59.2]} 3. g3 {[%clk 0:02:57.7]} 3... Bg7 {[%clk 0:02:59.8]}
4. Bg2 {[%clk 0:02:58.2]} 4... O-O {[%clk 0:03:00.7]} 5. O-O {[%clk 0:02:58.4]}
5... d6 {[%clk 0:03:01.6]} 6. c4 {[%clk 0:02:57]} 6... c6 {[%clk 0:03:02.5]} 7.
Nc3 {[%clk 0:02:56.5]} 7... Bf5 {[%clk 0:03:03.2]} 8. Re1 {[%clk 0:02:55.1]}
8... Ne4 {[%clk 0:03:03.1]} 9. Qb3 {[%clk 0:02:53.6]} 9... Nxc3 {[%clk
0:02:59.9]} 10. bxc3 {[%clk 0:02:36.2]} 10... Qc8 {[%clk 0:02:55.7]} 11. e4
{[%clk 0:02:34.2]} 11... Bg4 {[%clk 0:02:55]} 12. Bg5 {[%clk 0:02:27.3]} 12...
Re8 {[%clk 0:02:52.8]} 13. Rab1 {[%clk 0:02:19.5]} 13... b6 {[%clk 0:02:51.2]}
14. e5 {[%clk 0:02:05.5]} 14... Qf5 {[%clk 0:02:38.8]} 15. Bf4 {[%clk
0:01:56.8]} 15... Bxf3 {[%clk 0:02:07.7]} 16. Bxf3 {[%clk 0:01:56]} 16... dxe5
{[%clk 0:01:57.7]} 17. Be4 {[%clk 0:01:48.6]} 17... Qh3 {[%clk 0:01:48.3]} 18.
Bxe5 {[%clk 0:01:46.9]} 18... Bxe5 {[%clk 0:01:47.1]} 19. dxe5 {[%clk
0:01:46.8]} 19... Qe6 {[%clk 0:01:47.8]} 20. c5 {[%clk 0:01:44.6]} 20... Rc8
{[%clk 0:00:55.9]} 21. cxb6 {[%clk 0:01:24.4]} 21... axb6 {[%clk 0:00:35.3]} 22.
Qxe6 {[%clk 0:01:08.9]} 22... fxe6 {[%clk 0:00:35.2]} 23. Rxb6 {[%clk
0:01:06.4]} 23... Rxa2 {[%clk 0:00:35.4]} 24. Rd1 {[%clk 0:01:01.8]} 24... Kf7
{[%clk 0:00:17.7]} 25. Kf1 {[%clk 0:00:43.6]} 25... Ra7 {[%clk 0:00:14.7]} 26.
f4 {[%clk 0:00:40]} 26... Rac7 {[%clk 0:00:11.3]} 27. Rd3 {[%clk 0:00:20.2]}
27... Nd7 {[%clk 0:00:11]} 28. Rxc6 {[%clk 0:00:19.6]} 28... Rxc6 {[%clk
0:00:08.2]} 29. Bxc6 {[%clk 0:00:16.4]} 29... Rxc6 {[%clk 0:00:09.1]} 30. Rxd7
{[%clk 0:00:15.5]} 30... Rxc3 {[%clk 0:00:05.7]} 31. Kg2 {[%clk 0:00:15.4]}
31... h5 {[%clk 0:00:04.6]} 32. h4 {[%clk 0:00:14.2]} 32... Rc2+ {[%clk
0:00:04.4]} 33. Kf3 {[%clk 0:00:13.7]} 33... Rc3+ {[%clk 0:00:03.9]} 34. Kf2
{[%clk 0:00:11.9]} 34... Ke8 {[%clk 0:00:04.8]} 35. Ra7 {[%clk 0:00:11]} 35...
Kd8 {[%clk 0:00:05.1]} 36. Ra8+ {[%clk 0:00:10.8]} 36... Kd7 {[%clk 0:00:05.5]}
37. Rg8 {[%clk 0:00:09.9]} 37... Kc6 {[%clk 0:00:02.2]} 38. Rxg6 {[%clk
0:00:09.3]} 38... Kd5 {[%clk 0:00:03.1]} 39. Rg5 {[%clk 0:00:08.3]} 39... Ke4
{[%clk 0:00:02.9]} 40. f5 {[%clk 0:00:08.2]} 40... exf5 {[%clk 0:00:02.2]} 41.
Rxh5 {[%clk 0:00:07.2]} 41... Rc2+ {[%clk 0:00:02.9]} 42. Kf1 {[%clk 0:00:05.5]}
42... e6 {[%clk 0:00:03.6]} 43. Rg5 {[%clk 0:00:04.4]} 43... Kf3 {[%clk
0:00:03.5]} 44. Ke1 {[%clk 0:00:04.5]} 44... Re2+ {[%clk 0:00:03.3]} 45. Kd1
{[%clk 0:00:04.3]} 45... Rxe5 {[%clk 0:00:03.9]} 46. h5 {[%clk 0:00:04.7]} 46...
Re2 {[%clk 0:00:04]} 47. h6 {[%clk 0:00:04.2]} 47... Rh2 {[%clk 0:00:04.6]} 48.
Rg6 {[%clk 0:00:04.6]} 48... e5 {[%clk 0:00:04.8]} 49. Ke1 {[%clk 0:00:04.7]}
49... e4 {[%clk 0:00:05]} 50. Kd1 {[%clk 0:00:04.6]} 50... e3 {[%clk 0:00:05.4]}
51. Ke1 {[%clk 0:00:04.8]} 51... Rh1# {[%clk 0:00:05.7]} 0-1

[Event "Early-Titled-Tuesday-Blitz-March-26-2024"]
[Site "Chess.com"]
[Date "2024.03.26"]
[Round "4"]
[White "Masterisback04"]
[Black "ajeale2"]
[Result "1-0"]
[WhiteElo "2005"]
[BlackElo "2432"]
[TimeControl "180+1"]
[EndTime "8:38:51 PDT"]
[Termination "Masterisback04 won by resignation"]

1. e4 {[%clk 0:03:00]} 1... e6 {[%clk 0:02:57.6]} 2. d4 {[%clk 0:02:59.7]} 2...
d5 {[%clk 0:02:57.6]} 3. Nd2 {[%clk 0:02:59.7]} 3... c5 {[%clk 0:02:55.7]} 4.
Ngf3 {[%clk 0:02:57.1]} 4... cxd4 {[%clk 0:02:55.4]} 5. Nxd4 {[%clk 0:02:57]}
5... Nc6 {[%clk 0:02:52.9]} 6. Bb5 {[%clk 0:02:30.3]} 6... Bd7 {[%clk
0:02:50.5]} 7. N4b3 {[%clk 0:02:12.7]} 7... Qb6 {[%clk 0:02:43.1]} 8. a4 {[%clk
0:02:06.2]} 8... Nf6 {[%clk 0:02:31.1]} 9. exd5 {[%clk 0:02:02.3]} 9... exd5
{[%clk 0:02:26.6]} 10. Qe2+ {[%clk 0:01:55.5]} 10... Be6 {[%clk 0:02:15.6]} 11.
a5 {[%clk 0:01:50]} 11... Qc7 {[%clk 0:02:05.4]} 12. a6 {[%clk 0:01:49.7]} 12...
Be7 {[%clk 0:01:45]} 13. axb7 {[%clk 0:01:44.2]} 13... Rb8 {[%clk 0:01:30.3]}
14. Nd4 {[%clk 0:00:48]} 14... Bd7 {[%clk 0:01:29.8]} 15. Nxc6 {[%clk
0:00:14.5]} 15... Bxc6 {[%clk 0:01:29.7]} 16. Bxc6+ {[%clk 0:00:12.2]} 16...
Qxc6 {[%clk 0:01:29.9]} 17. O-O {[%clk 0:00:08.9]} 17... Rxb7 {[%clk 0:01:26.8]}
18. Nb3 {[%clk 0:00:09.1]} 18... O-O {[%clk 0:01:19.7]} 19. Na5 {[%clk
0:00:08.3]} 19... Qb5 {[%clk 0:01:20.1]} 20. c4 {[%clk 0:00:06.9]} 20... dxc4
{[%clk 0:01:11.6]} 21. Nxb7 {[%clk 0:00:06.6]} 21... Qxb7 {[%clk 0:01:12.5]} 22.
Qxc4 {[%clk 0:00:06.8]} 22... Rc8 {[%clk 0:01:12.1]} 23. Qa4 {[%clk 0:00:06]}
23... Bc5 {[%clk 0:01:11.8]} 24. Be3 {[%clk 0:00:05.7]} 24... Bd6 {[%clk
0:00:44.4]} 25. Rac1 {[%clk 0:00:04.7]} 25... Ra8 {[%clk 0:00:38.1]} 26. Qc6
{[%clk 0:00:03.4]} 26... Qe7 {[%clk 0:00:38.2]} 27. Bg5 {[%clk 0:00:01.6]} 27...
Rd8 {[%clk 0:00:29.4]} 28. Bxf6 {[%clk 0:00:01.8]} 28... Qxf6 {[%clk 0:00:29]}
29. g3 {[%clk 0:00:02.7]} 29... Qxb2 {[%clk 0:00:27.6]} 30. Rfd1 {[%clk
0:00:03]} 30... h6 {[%clk 0:00:21.1]} 31. Rc2 {[%clk 0:00:03.3]} 31... Qf6
{[%clk 0:00:04.7]} 32. Rcd2 {[%clk 0:00:03.4]} 32... Be7 {[%clk 0:00:02.4]} 33.
Rxd8+ {[%clk 0:00:03.5]} 33... Bxd8 {[%clk 0:00:02.4]} 34. Qe8+ {[%clk 0:00:04]}
34... Kh7 {[%clk 0:00:02.3]} 35. Qxd8 {[%clk 0:00:04.9]} 35... Qc3 {[%clk
0:00:02.1]} 36. Qd3+ {[%clk 0:00:04.8]} 36... Qxd3 {[%clk 0:00:02.8]} 37. Rxd3
{[%clk 0:00:05.7]} 37... Kg6 {[%clk 0:00:03.5]} 38. Ra3 {[%clk 0:00:06.3]} 38...
Kf5 {[%clk 0:00:04]} 39. Ra6 {[%clk 0:00:07.2]} 39... f6 {[%clk 0:00:03.7]} 40.
Rxa7 {[%clk 0:00:08.1]} 40... g5 {[%clk 0:00:04.2]} 41. Ra4 {[%clk 0:00:08.2]}
41... Kg6 {[%clk 0:00:04.7]} 42. Kg2 {[%clk 0:00:07.9]} 42... h5 {[%clk
0:00:05.6]} 43. f3 {[%clk 0:00:08.5]} 43... Kf5 {[%clk 0:00:05.7]} 44. h3 {[%clk
0:00:09.4]} 44... Kg6 {[%clk 0:00:06.5]} 45. g4 {[%clk 0:00:09.5]} 45... h4
{[%clk 0:00:07.2]} 46. f4 {[%clk 0:00:09.3]} 46... Kf7 {[%clk 0:00:08.1]} 47.
Kf3 {[%clk 0:00:09.9]} 47... Kg6 {[%clk 0:00:08.2]} 48. Ra5 {[%clk 0:00:09.2]}
48... Kh6 {[%clk 0:00:07.6]} 49. fxg5+ {[%clk 0:00:08.9]} 49... fxg5 {[%clk
0:00:08.5]} 50. Ra6+ {[%clk 0:00:09.1]} 50... Kh7 {[%clk 0:00:08.8]} 51. Ke4
{[%clk 0:00:10]} 51... Kg7 {[%clk 0:00:09.5]} 52. Kf5 {[%clk 0:00:10.4]} 52...
Kf7 {[%clk 0:00:10.4]} 53. Ra7+ {[%clk 0:00:10.6]} 53... Ke8 {[%clk 0:00:10.9]}
54. Kxg5 {[%clk 0:00:10.6]} 54... Kd8 {[%clk 0:00:11.8]} 55. Kf6 {[%clk
0:00:10.8]} 55... Kc8 {[%clk 0:00:12.7]} 56. g5 {[%clk 0:00:11]} 56... Kb8
{[%clk 0:00:13.6]} 57. Rf7 {[%clk 0:00:11.7]} 57... Kc8 {[%clk 0:00:14.1]} 58.
g6 {[%clk 0:00:12.6]} 58... Kd8 {[%clk 0:00:15]} 59. g7 {[%clk 0:00:13.5]} 1-0

[Event "Early-Titled-Tuesday-Blitz-March-26-2024"]
[Site "Chess.com"]
[Date "2024.03.26"]
[Round "4"]
[White "Angry_Twin"]
[Black "arenal72"]
[Result "1-0"]
[WhiteElo "2908"]
[BlackElo "2615"]
[TimeControl "180+1"]
[EndTime "8:38:52 PDT"]
[Termination "Angry_Twin won on time"]

1. e4 {[%clk 0:03:00.9]} 1... Nc6 {[%clk 0:02:59.6]} 2. d4 {[%clk 0:03:00.5]}
2... d5 {[%clk 0:02:59.3]} 3. e5 {[%clk 0:02:59.4]} 3... Bf5 {[%clk 0:02:58.9]}
4. Nf3 {[%clk 0:02:59.6]} 4... Qd7 {[%clk 0:02:58.8]} 5. Be2 {[%clk 0:02:54.4]}
5... f6 {[%clk 0:02:57]} 6. O-O {[%clk 0:02:49.3]} 6... O-O-O {[%clk 0:02:54.2]}
7. c3 {[%clk 0:02:40.4]} 7... g5 {[%clk 0:02:54.1]} 8. b4 {[%clk 0:02:33.6]}
8... h5 {[%clk 0:02:50]} 9. a4 {[%clk 0:02:27.4]} 9... g4 {[%clk 0:02:43.3]} 10.
Nh4 {[%clk 0:02:26.4]} 10... fxe5 {[%clk 0:02:43.5]} 11. b5 {[%clk 0:02:27]}
11... Na5 {[%clk 0:02:43]} 12. dxe5 {[%clk 0:02:27.5]} 12... Bg7 {[%clk
0:02:41.5]} 13. Bf4 {[%clk 0:02:13.1]} 13... Nh6 {[%clk 0:02:29.9]} 14. Re1
{[%clk 0:01:52.5]} 14... Rhf8 {[%clk 0:02:16.6]} 15. Nd2 {[%clk 0:01:29]} 15...
Bc2 {[%clk 0:01:50.3]} 16. Qxc2 {[%clk 0:01:21.5]} 16... Rxf4 {[%clk 0:01:49.8]}
17. Qg6 {[%clk 0:01:11.5]} 17... e6 {[%clk 0:01:47.2]} 18. Qxh5 {[%clk
0:01:03.8]} 18... Rdf8 {[%clk 0:01:40.7]} 19. Ng6 {[%clk 0:01:03.5]} 19... R8f5
{[%clk 0:01:30.3]} 20. Qh4 {[%clk 0:01:01.9]} 20... Rxf2 {[%clk 0:01:29]} 21.
Ne7+ {[%clk 0:01:01.9]} 21... Kb8 {[%clk 0:01:26]} 22. Nxf5 {[%clk 0:01:02.2]}
22... Rxf5 {[%clk 0:01:25.5]} 23. Bxg4 {[%clk 0:01:02.7]} 23... Nxg4 {[%clk
0:01:17.5]} 24. Qxg4 {[%clk 0:01:03.6]} 24... b6 {[%clk 0:01:14.3]} 25. Rad1
{[%clk 0:01:00]} 25... Bxe5 {[%clk 0:01:09.9]} 26. c4 {[%clk 0:00:58.6]} 26...
Qh7 {[%clk 0:00:59.3]} 27. Nf3 {[%clk 0:00:55.1]} 27... Nxc4 {[%clk 0:00:53.3]}
28. h3 {[%clk 0:00:48.7]} 28... Kb7 {[%clk 0:00:33.5]} 29. Re2 {[%clk
0:00:45.1]} 29... Bd6 {[%clk 0:00:24.8]} 30. Rxe6 {[%clk 0:00:32.9]} 30... Bc5+
{[%clk 0:00:24.3]} 31. Nd4 {[%clk 0:00:33.3]} 31... Qf7 {[%clk 0:00:20.2]} 32.
Qg6 {[%clk 0:00:21.7]} 32... Qxg6 {[%clk 0:00:15.4]} 33. Rxg6 {[%clk 0:00:22.6]}
33... Rf4 {[%clk 0:00:10.3]} 34. Rg4 {[%clk 0:00:22.8]} 34... Rxg4 {[%clk
0:00:07.6]} 35. hxg4 {[%clk 0:00:23.7]} 35... Ne3 {[%clk 0:00:07.7]} 36. Rd2
{[%clk 0:00:24.3]} 36... Nxg4 {[%clk 0:00:07.9]} 37. Kf1 {[%clk 0:00:19.3]}
37... Ne3+ {[%clk 0:00:07]} 38. Ke2 {[%clk 0:00:19.4]} 38... Nxg2 {[%clk
0:00:06.8]} 39. Ne6 {[%clk 0:00:18]} 39... Bd6 {[%clk 0:00:03.9]} 40. Kf3 {[%clk
0:00:13.4]} 40... Nh4+ {[%clk 0:00:03.9]} 41. Kg4 {[%clk 0:00:13.6]} 41... Ng6
{[%clk 0:00:04.4]} 42. Rxd5 {[%clk 0:00:14.1]} 42... Ne5+ {[%clk 0:00:04.8]} 43.
Kf5 {[%clk 0:00:13.7]} 43... Nd7 {[%clk 0:00:05]} 44. Nd8+ {[%clk 0:00:14.1]}
44... Kc8 {[%clk 0:00:05.2]} 45. Nc6 {[%clk 0:00:14.8]} 45... Kb7 {[%clk
0:00:05.4]} 46. Rd4 {[%clk 0:00:13.5]} 46... a6 {[%clk 0:00:04.9]} 47. Rg4
{[%clk 0:00:12.4]} 47... axb5 {[%clk 0:00:04]} 48. axb5 {[%clk 0:00:12.4]} 48...
Nb8 {[%clk 0:00:04.3]} 49. Nd8+ {[%clk 0:00:09.2]} 49... Kc8 {[%clk 0:00:04]}
50. Rg8 {[%clk 0:00:09.8]} 1-0

[Event "Early-Titled-Tuesday-Blitz-March-26-2024"]
[Site "Chess.com"]
[Date "2024.03.26"]
[Round "4"]
[White "suyu28"]
[Black "Shield12"]
[Result "1-0"]
[WhiteElo "2855"]
[BlackElo "2986"]
[TimeControl "180+1"]
[EndTime "8:39:01 PDT"]
[Termination "suyu28 won by resignation"]

1. d4 {[%clk 0:02:53]} 1... Nf6 {[%clk 0:03:00.1]} 2. c4 {[%clk 0:02:53.3]} 2...
e6 {[%clk 0:03:00.6]} 3. Nf3 {[%clk 0:02:53.9]} 3... d5 {[%clk 0:03:00.8]} 4. g3
{[%clk 0:02:54.3]} 4... dxc4 {[%clk 0:02:59.1]} 5. Bg2 {[%clk 0:02:54.2]} 5...
c6 {[%clk 0:03:00]} 6. a4 {[%clk 0:02:53.3]} 6... a5 {[%clk 0:02:54.7]} 7. O-O
{[%clk 0:02:26.7]} 7... Nbd7 {[%clk 0:02:53.9]} 8. Nfd2 {[%clk 0:01:48.1]} 8...
Nb6 {[%clk 0:02:52.8]} 9. e3 {[%clk 0:01:47.5]} 9... c5 {[%clk 0:02:43.2]} 10.
Na3 {[%clk 0:01:36.3]} 10... cxd4 {[%clk 0:02:41.3]} 11. Ndxc4 {[%clk
0:01:35.5]} 11... Nxc4 {[%clk 0:02:30.3]} 12. Nxc4 {[%clk 0:01:35]} 12... Bc5
{[%clk 0:02:28.3]} 13. exd4 {[%clk 0:01:26]} 13... Qxd4 {[%clk 0:02:27.3]} 14.
Qb3 {[%clk 0:01:06.8]} 14... Nd5 {[%clk 0:02:13.1]} 15. Be3 {[%clk 0:00:58.8]}
15... Nxe3 {[%clk 0:02:12]} 16. fxe3 {[%clk 0:00:58.9]} 16... Qd7 {[%clk
0:01:55]} 17. Ne5 {[%clk 0:00:55.9]} 17... Qc7 {[%clk 0:01:47.8]} 18. Qb5+
{[%clk 0:00:30.9]} 18... Bd7 {[%clk 0:01:48]} 19. Nxd7 {[%clk 0:00:23.6]} 19...
Bxe3+ {[%clk 0:01:48]} 20. Kh1 {[%clk 0:00:24.3]} 20... Qxd7 {[%clk 0:01:48.8]}
21. Qxd7+ {[%clk 0:00:20.2]} 21... Kxd7 {[%clk 0:01:49]} 22. Rxf7+ {[%clk
0:00:21.1]} 22... Ke8 {[%clk 0:01:27]} 23. Rxb7 {[%clk 0:00:16.8]} 23... Rc8
{[%clk 0:01:25.6]} 24. Re1 {[%clk 0:00:16.8]} 24... Rf8 {[%clk 0:01:12.3]} 25.
Rb3 {[%clk 0:00:08.1]} 25... Bf2 {[%clk 0:01:07.3]} 26. Rxe6+ {[%clk 0:00:07.5]}
26... Kf7 {[%clk 0:01:07.7]} 27. Bd5 {[%clk 0:00:07.7]} 27... Kg8 {[%clk
0:00:58.9]} 28. Re7+ {[%clk 0:00:07.8]} 28... Kh8 {[%clk 0:00:59]} 29. Kg2
{[%clk 0:00:08.3]} 29... Bc5 {[%clk 0:00:56.4]} 30. Re2 {[%clk 0:00:06.8]} 30...
Rcd8 {[%clk 0:00:52.1]} 31. Bf3 {[%clk 0:00:06.9]} 31... g6 {[%clk 0:00:43.8]}
32. Rb5 {[%clk 0:00:07.1]} 32... Bb4 {[%clk 0:00:40.7]} 33. Rb7 {[%clk
0:00:06.2]} 33... Rd3 {[%clk 0:00:34.7]} 34. Be4 {[%clk 0:00:06.3]} 34... Rd1
{[%clk 0:00:34.2]} 35. Rc7 {[%clk 0:00:05.6]} 35... Re8 {[%clk 0:00:30.8]} 36.
Bf3 {[%clk 0:00:04]} 36... Rf8 {[%clk 0:00:30.9]} 37. Be4 {[%clk 0:00:03.9]}
37... Ra1 {[%clk 0:00:28.7]} 38. b3 {[%clk 0:00:04]} 38... Rd1 {[%clk 0:00:28]}
39. Bc2 {[%clk 0:00:03.6]} 39... Rc1 {[%clk 0:00:27.1]} 40. Rc4 {[%clk
0:00:02.7]} 40... Rcf1 {[%clk 0:00:24.7]} 41. Be4 {[%clk 0:00:02.9]} 41... Rd1
{[%clk 0:00:24]} 42. Bc2 {[%clk 0:00:03]} 42... Rc1 {[%clk 0:00:23.8]} 43. Be4
{[%clk 0:00:03.9]} 43... Ra1 {[%clk 0:00:23.9]} 44. Bc2 {[%clk 0:00:04.2]} 44...
Kg7 {[%clk 0:00:23.8]} 45. Be4 {[%clk 0:00:04.6]} 45... Rf7 {[%clk 0:00:23.7]}
46. Bf3 {[%clk 0:00:05]} 46... Rb1 {[%clk 0:00:22.2]} 47. Bd5 {[%clk 0:00:04]}
47... Rd7 {[%clk 0:00:20.5]} 48. Be6 {[%clk 0:00:04.4]} 48... Re7 {[%clk
0:00:20.6]} 49. Rce4 {[%clk 0:00:04.9]} 49... Rc1 {[%clk 0:00:19.2]} 50. Bc4
{[%clk 0:00:05.3]} 50... Rd7 {[%clk 0:00:17.4]} 51. Re8 {[%clk 0:00:05.4]} 51...
Bc5 {[%clk 0:00:17]} 52. Rg8+ {[%clk 0:00:05.5]} 52... Kh6 {[%clk 0:00:16.4]}
53. Rc8 {[%clk 0:00:06.4]} 53... Rg1+ {[%clk 0:00:17.3]} 54. Kh3 {[%clk
0:00:06.4]} 54... Bb4 {[%clk 0:00:18.2]} 55. Rce8 {[%clk 0:00:06.3]} 55... Rf7
{[%clk 0:00:18.2]} 56. Bxf7 {[%clk 0:00:05.7]} 56... Kg7 {[%clk 0:00:18.2]} 57.
Bc4 {[%clk 0:00:06.3]} 1-0